lending/lending_fUSD_20241014
["ID","MTS","AMOUNT","RATE_DAILY","PERIOD"]
[340243623,1728904246673,-150.0,0.0002221,2]
[340243624,1728904246683,-150.0,0.00022213,2]
[340243625,1728904246691,-150.0,0.00022219,2]
[340243626,1728904246701,-150.0,0.00022223,2]
[340243627,1728904246710,-150.0,0.00022228,2]
[340243628,1728904246719,-150.0,0.00022229,2]
[340243629,1728904246729,-150.0,0.00022231,2]
[340243630,1728904246738,-150.0,0.00022231,2]
[340243631,1728904246832,-150.0,0.00022243,2]
[340243632,1728904246842,-150.0,0.00022244,2]
[340243633,1728904246852,-150.0,0.00022248,2]
[340243634,1728904246862,-150.0,0.00022249,2]
[340243635,1728904246872,-7500.0,0.00022251,2]
[340243636,1728904246882,-150.0,0.00022253,2]
[340243637,1728904246892,-150.0,0.00022256,2]
[340243638,1728904246901,-150.0,0.00022256,2]
[340243639,1728904246911,-150.0,0.00022259,2]
[340243640,1728904246921,-150.0,0.0002226,2]
[340243641,1728904246931,-150.0,0.00022261,2]
[340243642,1728904246941,-943.06,0.00022266,2]
[340243643,1728904246952,-150.0,0.00022272,2]
[340243644,1728904246962,-150.0,0.00022274,2]
[340243645,1728904246971,-150.0,0.00022274,2]
[340243646,1728904246981,-150.0,0.00022275,2]
[340243647,1728904246991,-150.0,0.00022277,2]
[340243648,1728904247001,-150.0,0.00022282,2]
[340243649,1728904247010,-150.0,0.00022294,2]
[340243650,1728904247021,-150.0,0.00022295,2]
[340243651,1728904247032,-150.0,0.00022304,2]
[340243652,1728904247041,-150.0,0.00022304,2]
[340243653,1728904247051,-150.0,0.00022305,2]
[340243654,1728904247060,-150.0,0.00022308,2]
[340243655,1728904247070,-150.0,0.00022311,2]
[340243656,1728904247079,-150.0,0.00022313,2]
[340243657,1728904247089,-150.0,0.00022325,2]
[340243658,1728904247099,-150.0,0.00022328,2]
[340243659,1728904247108,-150.0,0.0002233,2]
[340243660,1728904247117,-150.0,0.00022334,2]
[340243661,1728904247128,-150.0,0.00022339,2]
[340243662,1728904247137,-150.0,0.00022344,2]
[340243663,1728904247147,-150.0,0.00022346,2]
[340243664,1728904247157,-150.0,0.00022347,2]
[340243665,1728904247167,-150.0,0.00022347,2]
[340243666,1728904247177,-150.0,0.00022351,2]
[340243667,1728904247187,-150.0,0.00022353,2]
[340243668,1728904247197,-150.0,0.0002236,2]
[340243669,1728904247207,-413.49304592,0.00022361,2]
[340243670,1728904247217,-150.0,0.00022362,2]
[340243671,1728904247227,-150.0,0.00022364,2]
[340243672,1728904247237,-150.0,0.00022365,2]
[340243673,1728904247252,-150.0,0.00022366,2]
[340243674,1728904247262,-150.0,0.00022371,2]
[340243675,1728904247271,-289.39075902,0.00022373,2]
[340243676,1728904247282,-300.0,0.00022373,2]
[340243677,1728904247294,-150.0,0.00022376,2]
[340243678,1728904247304,-150.0,0.00022377,2]
[340243679,1728904247313,-20243.980946,0.0002238,5]
[340243680,1728904247324,-150.0,0.00022381,2]
[340243681,1728904247340,-150.0,0.00022383,2]
[340243682,1728904247358,-150.0,0.00022386,2]
[340243683,1728904247374,-150.0,0.00022387,2]
[340243684,1728904247392,-150.0,0.0002239,2]
[340243685,1728904247409,-13665.17451612,0.0002239,5]
[340243686,1728904247557,-566.82135719,0.0002239,5]
[340243687,1728904247575,-6011.98507269,0.0002239,5]
[340243688,1728904247593,-150.0,0.00022392,2]
[340243689,1728904247607,-150.0,0.00022398,2]
[340243690,1728904247622,-150.0,0.00022399,2]
[340243691,1728904247638,-2000.0,0.000224,2]
[340243692,1728904247653,-2000.0,0.000224,2]
[340243693,1728904247667,-2000.0,0.000224,2]
[340243694,1728904247681,-2000.0,0.000224,2]
[340243695,1728904247696,-2000.0,0.000224,2]
[340243696,1728904247709,-2000.0,0.000224,2]
[340243697,1728904247723,-2000.0,0.000224,2]
[340243698,1728904247737,-832.0,0.000224,5]
[340243699,1728904247751,-1130.22,0.000224,31]
[340243700,1728904247766,-1130.22,0.000224,31]
[340243701,1728904247780,-1130.22,0.000224,31]
[340243702,1728904247795,-1130.22,0.000224,31]
[340243703,1728904247809,-1130.22,0.000224,31]
[340243704,1728904247823,-1130.22,0.000224,31]
[340243705,1728904247837,-1130.22,0.000224,31]
[340243706,1728904247852,-1130.22,0.000224,31]
[340243707,1728904247868,-1130.22,0.000224,31]
[340243708,1728904247881,-1130.22,0.000224,31]
[340243709,1728904247895,-1130.22,0.000224,31]
[340243710,1728904247909,-1130.22,0.000224,31]
[340243711,1728904247923,-1130.22,0.000224,31]
[340243712,1728904247938,-1130.22,0.000224,31]
[340243713,1728904247952,-1130.22,0.000224,31]
[340243714,1728904247966,-1130.22,0.000224,31]
[340243715,1728904247980,-416.0,0.000224,5]
[340243716,1728904247994,-150.0,0.000224,2]
[340243717,1728904248004,-343.99558942,0.000224,2]
[340243718,1728904248014,-500.0,0.000224,2]
[340243719,1728904248024,-150.0,0.00022402,2]
[340243720,1728904248034,-150.0,0.00022403,2]
[340243721,1728904248044,-150.0,0.0002241,2]
[340243722,1728904248054,-150.0,0.00022417,2]
[340243723,1728904248065,-150.0,0.0002242,2]
[340243724,1728904248240,-150.0,0.00022427,2]
[340243725,1728904248252,-150.0,0.00022434,2]
[340243726,1728904248261,-1500.0,0.00022434,2]
[340243727,1728904248271,-150.0,0.00022435,2]
[340243728,1728904248282,-150.0,0.00022448,2]
[340243729,1728904248292,-150.0,0.00022452,2]
[340243730,1728904248305,-40487.9618921,0.00022465,5]
[340243731,1728904248315,-150.0,0.00022467,2]
[340243732,1728904248327,-150.0,0.00022467,2]
[340243733,1728904248336,-20243.980946,0.00022469,5]
[340243734,1728904248346,-150.0,0.0002247,2]
[340243735,1728904248357,-101219.90473,0.0002247,5]
[340243736,1728904248367,-80209.2342508,0.0002247,5]
[340243737,1728904248377,-40487.9618921,0.00022475,5]
[340243738,1728904248387,-53472.8228338,0.00022475,5]
[340243739,1728904248398,-150.0,0.00022476,2]
[340243740,1728904248408,-1587.0032108,0.00022477,2]
[340243741,1728904248418,-150.0,0.00022478,2]
[340243742,1728904248429,-20243.980946,0.00022479,5]
[340243743,1728904248439,-216.9109289,0.00022479,2]
[340243744,1728904248448,-964.8764161,0.00022479,2]
[340243745,1728904248458,-37220.8722655,0.00022479,2]
[340243746,1728904248468,-4946.737583,0.00022479,2]
[340243747,1728904248478,-20243.980946,0.0002248,5]
[340243748,1728904248487,-26736.4114169,0.0002248,5]
[340243749,1728904248497,-39179.87717252,0.0002248,5]
[340243750,1728904248522,-1308.08471958,0.0002248,5]
[340243751,1728904248534,-29563.12350074,0.0002248,5]
[340243752,1728904248545,-799.09268258,0.0002248,5]
[340243753,1728904248565,-4347.7801562,0.0002248,5]
[340243754,1728904277701,300.0,0.00027,60]
[340243755,1728904277895,352.0,0.00027,60]
[340243756,1728904389515,158.29,0.00010959,2]
[340243758,1728904693843,550.0,0.0001,2]
[340243759,1728904759601,158.09,0.000261,120]
[340243760,1728904893069,157.14,0.00010959,2]
[340243762,1728905108004,43337.9725,0.00011,2]
[340243763,1728905108033,50000.0,0.00011,2]
[340243764,1728905108059,50000.0,0.00011,2]
[340243765,1728905108085,50000.0,0.00011,2]
[340243766,1728905108113,50000.0,0.00011,2]
[340243767,1728905108141,50000.0,0.00011,2]
[340243769,1728905221276,200.0,0.000106,3]
[340243770,1728905223440,500.0,0.000107,3]
[340243771,1728905225734,700.0,0.000108,3]
[340243772,1728905227859,1000.0,0.000109,3]
[340243773,1728905327073,7438.0,0.0001,2]
[340243774,1728905327099,18881.69745129,0.0001,2]
[340243775,1728905327123,110788.36116245,0.0001,2]
[340243788,1728905431627,-258.5265,0.00010859,2]
[340243789,1728905431640,-258.5265,0.00010873,2]
[340243790,1728905431649,-150.0,0.00010881,2]
[340243791,1728905431659,-2542.897,0.00010959,2]
[340243792,1728905431671,-7003.40991449,0.00010959,2]
[340243793,1728905431681,-230.12,0.00010959,2]
[340243794,1728905431690,-500.0,0.00010973,2]
[340243795,1728905431699,-500.0,0.00010973,2]
[340243796,1728905431708,-300.0,0.00010999,2]
[340243797,1728905431718,-150.0,0.00010999,2]
[340243798,1728905431727,-532.70347043,0.00010999,2]
[340243799,1728905431737,-1078646.58965407,0.00011,2]
[340243800,1728905431747,-62579.98488701,0.00011,2]
[340243801,1728905431758,-544.57707993,0.00011,2]
[340243802,1728905431774,-418.54007673,0.00011,2]
[340243803,1728905431807,-458026.97060595,0.00011,2]
[340243804,1728905431851,-500.56005864,0.00011,2]
[340243806,1728905437884,-618388.74260266,0.00011,2]
[340243807,1728905437895,-427.20419193,0.00011,2]
[340243808,1728905437917,-12294.39456971,0.00011,2]
[340243809,1728905437928,-31844.98063836,0.00011,2]
[340243810,1728905437951,-693.51935749,0.00011,2]
[340243811,1728905438072,-4626.47432226,0.00011,2]
[340243814,1728905439712,-191.77,0.00010959,2]
[340243815,1728905439722,-1092.04958987,0.00011,2]
[340243816,1728905439745,-770.0,0.00011,2]
[340243817,1728905439782,-271.0,0.00011,2]
[340243818,1728905439913,-5807.5824484,0.00011,2]
[340243826,1728905442828,-261.58064515,0.00011,2]
[340243827,1728905442978,-13095.07788184,0.00011,2]
[340243830,1728905445757,-297642.85901368,0.00011,2]
[340243831,1728905445770,-25534.90031359,0.00011,2]
[340243832,1728905445883,-1828.17275131,0.00011,2]
[340243833,1728905445918,-4757.12726832,0.00011,2]
[340243841,1728906524216,550.0,0.0001,2]
[340243848,1728906631695,-904.52,0.00010581,2]
[340243849,1728906631706,-150.0,0.00010899,2]
[340243850,1728906631716,-4414.9101,0.000109,2]
[340243851,1728906631726,-1577.1293,0.000109,2]
[340243852,1728906631735,-894.0289,0.000109,2]
[340243853,1728906631746,-747.4548,0.000109,2]
[340243854,1728906631756,-825.9243,0.000109,2]
[340243855,1728906631766,-1231.6386,0.000109,2]
[340243856,1728906631777,-312.592,0.000109,2]
[340243857,1728906631786,-6388.57745674,0.000109,2]
[340243858,1728906631796,-2061.1445,0.000109,2]
[340243859,1728906631805,-150.0,0.00010932,2]
[340243860,1728906631815,-159.81,0.00010959,2]
[340243861,1728906631824,-799.06,0.00010959,2]
[340243862,1728906631834,-158.54,0.00010959,2]
[340243863,1728906631844,-297.34737835,0.00010973,2]
[340243864,1728906631853,-500.0,0.00010973,2]
[340243865,1728906631863,-500.0,0.00010973,2]
[340243866,1728906631873,-500.0,0.00010973,2]
[340243867,1728906631883,-392.13007046,0.00010999,2]
[340243868,1728906631892,-18350.88627534,0.00011,2]
[340243869,1728906631904,-145660.81680918,0.00011,2]
[340243870,1728906631920,-17416.93220924,0.00011,2]
[340243871,1728906631931,-1285.41229533,0.00011,2]
[340243872,1728906631943,-2171.72594729,0.00011,2]
[340243873,1728906631987,-1100.75449853,0.00011,2]
[340243874,1728906631999,-1305.56126398,0.00011,2]
[340243875,1728906632010,-546.70831491,0.00011,2]
[340243876,1728906632023,-12013.07877308,0.00011,2]
[340243879,1728906637901,-32006.39999999,0.00011,2]
[340243881,1728906637957,-1342.85010944,0.00011,2]
[340243882,1728906638124,-974.05217222,0.00011,2]
[340243883,1728906638181,-32550.53044871,0.00011,2]
[340243884,1728906638296,-1700.51020281,0.00011,2]
[340243885,1728906638353,-5011.62759629,0.00011,2]
[340243889,1728906639805,-262.61055778,0.00011,2]
[340243890,1728906639969,-685.78827101,0.00011,2]
[340243892,1728906642797,-396.66504747,0.00011,2]
[340243893,1728906642856,-427.18428536,0.00011,2]
[340243894,1728906642867,-537.88,0.00011,2]
[340243895,1728906642879,-935.05871083,0.00011,2]
[340243896,1728906642891,-665.45020543,0.00011,2]
[340243897,1728906642903,-265842.60492093,0.00011,2]
[340243898,1728906642914,-1255.06367634,0.00011,2]
[340243899,1728906643076,-261.5722,0.00011,2]
[340243900,1728906643132,-9048.12466035,0.00011,2]
[340243905,1728906645864,-31674.59367999,0.00011,2]
[340243906,1728906645875,-262.75319995,0.00011,2]
[340243907,1728906645961,-12722.85472569,0.00011,2]
[340243908,1728906645982,-14667.97488958,0.00011,2]
[340243909,1728906698782,910.18,9.604e-05,2]
[340243911,1728907034038,150.0,0.00010225,2]
[340243912,1728907155484,150.0,0.00010227,2]
[340243913,1728907276912,150.0,0.00010229,2]
[340243914,1728907287566,889.0,9.385e-05,2]
[340243916,1728907398568,150.0,0.00010231,2]
[340243917,1728907519988,150.0,0.00010232,2]
[340243918,1728907642043,-150.0,0.00010235,2]
[340243932,1728907738566,403.11984292,0.00027,60]
[340243936,1728907808102,-150.0,0.00010237,2]
[340243937,1728907808126,-500.0,0.00010357,2]
[340243938,1728907808149,-500.0,0.00010357,2]
[340243939,1728907808172,-628.99021115,0.000108,2]
[340243940,1728907808195,-150.0,0.00010899,2]
[340243941,1728907808217,-27168.6624,0.000109,2]
[340243942,1728907808240,-413.9447,0.000109,2]
[340243943,1728907808265,-6398.4641,0.000109,2]
[340243944,1728907808291,-601.985958,0.000109,2]
[340243945,1728907808314,-202.03,0.00010959,2]
[340243946,1728907808336,-158.29,0.00010959,2]
[340243947,1728907808358,-160.4771344,0.00010973,2]
[340243948,1728907808381,-500.0,0.00010973,2]
[340243949,1728907808405,-500.0,0.00010973,2]
[340243950,1728907808428,-1537.3029765,0.0001099,2]
[340243951,1728907808453,-60429.85251995,0.00011,2]
[340243952,1728907825580,-86000.0,0.00011,2]
[340243953,1728907827004,870.53,9.624e-05,2]
[340243954,1728907831975,-1789.54181961,0.00011,2]
[340243955,1728907832028,-27009.78017579,0.00011,2]
[340243956,1728907832083,-28212.24768562,0.00011,2]
[340243957,1728907832435,-709.07769855,0.00011,2]
[340243958,1728907832447,-1408.21,0.00011,2]
[340243961,1728907838035,-736.06304311,0.00011,2]
[340243962,1728907838047,-473.48451638,0.00011,2]
[340243963,1728907838101,-116599.66150394,0.00011,2]
[340243964,1728907838111,-200.0,0.00011,2]
[340243965,1728907838120,-200.0,0.00011,2]
[340243966,1728907838130,-2000.0,0.00011,2]
[340243967,1728907838139,-200.0,0.00011,2]
[340243968,1728907838149,-30000.0,0.00011,2]
[340243969,1728907838158,-200.0,0.0001111,2]
[340243970,1728907838168,-200.0,0.0001111,2]
[340243971,1728907838178,-2000.0,0.0001111,2]
[340243972,1728907838188,-200.0,0.0001111,2]
[340243973,1728907838197,-181.15,0.00011188,2]
[340243974,1728907838206,-472.55,0.00011188,2]
[340243975,1728907838216,-5619.42,0.00011188,2]
[340243976,1728907838225,-23900.0,0.00011195,2]
[340243977,1728907838235,-200.0,0.00011221,2]
[340243978,1728907838244,-200.0,0.00011221,2]
[340243979,1728907838253,-200.0,0.00011221,2]
[340243980,1728907838263,-150.0,0.00011222,2]
[340243981,1728907838272,-226.52,0.00011238,2]
[340243982,1728907838282,-200.0,0.00011333,2]
[340243983,1728907838291,-200.0,0.00011333,2]
[340243984,1728907838301,-200.0,0.00011333,2]
[340243985,1728907838311,-166.73,0.00011344,2]
[340243986,1728907838321,-1404.55,0.00011344,2]
[340243987,1728907838330,-499.99,0.00011344,2]
[340243988,1728907838340,-200.0,0.00011375,2]
[340243989,1728907838349,-1000.0,0.00011375,2]
[340243990,1728907838358,-1838.74,0.00011375,2]
[340243991,1728907838368,-1262.71,0.00011404,2]
[340243992,1728907838377,-193.51,0.00011437,2]
[340243993,1728907838387,-250.0,0.00011444,2]
[340243994,1728907838397,-200.0,0.00011447,2]
[340243995,1728907838406,-200.0,0.00011447,2]
[340243996,1728907838416,-200.0,0.00011447,2]
[340243997,1728907838426,-156.12,0.00011468,2]
[340243998,1728907838435,-179.85,0.00011468,2]
[340243999,1728907838445,-250.0,0.00011473,2]
[340244000,1728907838454,-2751.0,0.00011507,2]
[340244001,1728907838463,-166.12,0.00011703,2]
[340244002,1728907838472,-250.0,0.00011776,2]
[340244003,1728907838482,-226.52,0.000118,2]
[340244004,1728907838491,-870.53,0.00011888,2]
[340244005,1728907838500,-189.71,0.00011907,2]
[340244006,1728907838509,-600.0,0.00012,2]
[340244007,1728907838519,-601.98595797,0.00012178,2]
[340244008,1728907838528,-226.52,0.00012362,2]
[340244010,1728907838538,-167.0,0.00012445,2]
[340244012,1728907838546,-180.0,0.000126,2]
[340244013,1728907838556,-1000.0,0.00012797,2]
[340244014,1728907838566,-170.28,0.00012851,2]
[340244015,1728907838575,-2905.72471238,0.00012899,2]
[340244016,1728907838585,-226.52,0.00012924,2]
[340244017,1728907838594,-200.75,0.00013072,2]
[340244018,1728907838603,-601.98595797,0.00013456,2]
[340244019,1728907838612,-226.52,0.00013486,2]
[340244020,1728907838622,-2326.91,0.00013699,2]
[340244021,1728907838631,-200.0,0.00013699,2]
[340244022,1728907838640,-500.56890875,0.00013773,2]
[340244023,1728907838650,-500.66472637,0.00013773,2]
[340244024,1728907838659,-132044.577798,0.000138,3]
[340244025,1728907838669,-304.46830506,0.0001389,2]
[340244026,1728907838678,-24681.5974358,0.000139,3]
[340244027,1728907838687,-650.0,0.00014,2]
[340244028,1728907838697,-870.53,0.00014152,2]
[340244029,1728907838706,-1000.0,0.00014219,2]
[340244030,1728907838716,-1886.91574201,0.00014481,2]
[340244031,1728907838725,-151.13514032,0.00014556,2]
[340244032,1728907838737,-166.12,0.00014629,2]
[340244033,1728907838747,-12340.7987179,0.00014653,3]
[340244034,1728907838756,-18863.511114,0.00014663,3]
[340244035,1728907838765,-150.0,0.00014673,2]
[340244036,1728907838775,-1150.0,0.00014673,2]
[340244037,1728907838785,-13529.0,0.00014673,2]
[340244038,1728907838795,-5882.0,0.00014673,2]
[340244039,1728907838804,-8017.37380211,0.00014729,3]
[340244040,1728907838824,-4323.42491579,0.00014729,3]
[340244041,1728907838833,-601.98595797,0.00014733,2]
[340244042,1728907838842,-219.88912381,0.0001474,3]
[340244043,1728907838857,-550.52576018,0.0001474,3]
[340244044,1728907838868,-18093.09623001,0.0001474,3]
[340244045,1728907838877,-12340.7987179,0.0001474,3]
[340244046,1728907838887,-560.0,0.0001475,2]
[340244047,1728907838897,-1244.0,0.0001475,2]
[340244048,1728907838907,-150.0,0.0001475,2]
[340244049,1728907838916,-555.0,0.0001475,2]
[340244050,1728907838926,-935.0,0.0001475,2]
[340244051,1728907838936,-1908.0,0.0001475,2]
[340244052,1728907838946,-3356.0,0.0001475,2]
[340244053,1728907838955,-808.0,0.0001475,2]
[340244054,1728907838965,-1083.0,0.0001475,2]
[340244055,1728907838974,-3378.0,0.000148,5]
[340244056,1728907838984,-189.71,0.00014883,2]
[340244057,1728907838993,-189.0,0.00015,2]
[340244058,1728907839003,-390.0,0.00015,2]
[340244059,1728907839013,-19.27559748,0.00015,2]
[340244060,1728907839024,-207.72440252,0.00015,2]
[340244061,1728907839033,-1000.0,0.00015641,2]
[340244062,1728907839043,-1262.71,0.00015966,2]
[340244063,1728907839145,-700.0,0.00016,2]
[340244064,1728907839157,-601.98595797,0.00016011,2]
[340244065,1728907839167,-870.53,0.00016416,2]
[340244066,1728907839176,-150.0,0.00016438,2]
[340244067,1728907839186,-161.17,0.00016438,2]
[340244068,1728907839195,-159.84,0.00016438,2]
[340244069,1728907839205,-150.0,0.00016575,2]
[340244070,1728907839214,-150.0,0.00016712,2]
[340244071,1728907839227,-163.38,0.00016712,2]
[340244072,1728907839237,-150.0,0.00016849,2]
[340244073,1728907839247,-150.0,0.00016986,2]
[340244074,1728907839257,-1000.0,0.00017063,2]
[340244075,1728907839267,-287.0176806,0.00017123,2]
[340244076,1728907839276,-159.84,0.00017186,2]
[340244077,1728907839286,-12340.7987179,0.0001728,3]
[340244078,1728907839295,-601.98595797,0.00017289,2]
[340244079,1728907839307,-18863.511114,0.0001729,3]
[340244080,1728907839317,-166.12,0.00017555,2]
[340244081,1728907839326,-2843.294,0.00017673,2]
[340244082,1728907839336,-631.33,0.0001775,2]
[340244083,1728907839346,-189.71,0.0001786,2]
[340244084,1728907839355,-159.84,0.00017933,2]
[340244085,1728907839364,-750.0,0.00018,2]
[340244086,1728907839374,-601.98595797,0.00018567,2]
[340244087,1728907839384,-870.53,0.00018679,2]
[340244088,1728907839393,-159.84,0.0001868,2]
[340244089,1728907839402,-159.84,0.00019427,2]
[340244090,1728907839412,-423.99,0.00019616,2]
[340244091,1728907839421,-755.56,0.00019616,2]
[340244092,1728907839430,-601.98595797,0.00019844,2]
[340244093,1728907839440,-800.0,0.0002,2]
[340244094,1728907839449,-150.0,0.00020027,2]
[340244095,1728907839459,-150.0,0.00020027,2]
[340244096,1728907839468,-300.0,0.00020027,2]
[340244097,1728907839477,-150.0,0.00020027,2]
[340244098,1728907839487,-150.0,0.00020027,2]
[340244099,1728907839497,-359.09,0.00020027,2]
[340244100,1728907839506,-150.0,0.00020027,2]
[340244101,1728907839516,-429.44,0.00020027,2]
[340244102,1728907839525,-321.15,0.00020027,2]
[340244103,1728907839534,-12340.7987179,0.00020165,4]
[340244104,1728907839544,-159.84,0.00020174,2]
[340244105,1728907839554,-161.17,0.00020274,2]
[340244106,1728907839567,-3778.0691846,0.000205,2]
[340244107,1728907839577,-1317.12633341,0.000205,2]
[340244108,1728907839587,-159.84,0.00020922,2]
[340244109,1728907839597,-870.53,0.00020943,2]
[340244110,1728907839607,-601.98595797,0.00021122,2]
[340244111,1728907839616,-159.84,0.00021669,2]
[340244112,1728907839625,-179.66,0.00021918,2]
[340244113,1728907839635,-196.89,0.00021918,2]
[340244114,1728907839645,-12340.7987179,0.00021967,4]
[340244115,1728907839654,-2455.68325078,0.00021977,4]
[340244116,1728907840047,-267.73669778,0.00021977,4]
[340244117,1728907840102,-1278.93957639,0.00021977,4]
[340244118,1728907840113,-14861.15158905,0.00021977,4]
[340244119,1728907840122,-624.0,0.00022,2]
[340244120,1728907840131,-500.8906952,0.00022,4]
[340244121,1728907840141,-500.32678096,0.00022,6]
[340244122,1728907840150,-850.0,0.00022,2]
[340244123,1728907840159,-500.13816814,0.00022,5]
[340244124,1728907840168,-153.25,0.00022137,30]
[340244125,1728907840177,-330.966,0.000222,2]
[340244126,1728907840186,-168.40668733,0.000222,2]
[340244127,1728907840196,-43096.58402801,0.000223,15]
[340244128,1728907840208,-2363.9,0.000223,15]
[340244129,1728907840219,-20106.592846,0.000223,15]
[340244130,1728907840230,-415.1,0.000223,15]
[340244131,1728907840243,-9075.74471615,0.000223,15]
[340244140,1728907843032,-250.0,0.00015766,2]
[340244142,1728907843042,-2837.7847,0.000223,15]
[340244147,1728907843190,-45660.97902338,0.000223,15]
[340244148,1728907843200,-9154.644866,0.000223,2]
[340244149,1728907843209,-810.714042,0.000223,2]
[340244150,1728907843218,-176.11698715,0.000223,2]
[340244151,1728907843227,-176.11698715,0.00022345,2]
[340244152,1728907843236,-12340.7987179,0.0002236,5]
[340244153,1728907843246,-18863.511114,0.0002237,5]
[340244154,1728907843255,-217.0,0.00022379,2]
[340244155,1728907843264,-12340.7987179,0.0002238,5]
[340244156,1728907843273,-3069.45381349,0.00022383,2]
[340244157,1728907843283,-6006.72398811,0.00022387,2]
[340244158,1728907843292,-18863.511114,0.0002239,5]
[340244159,1728907843302,-6475.86265179,0.0002239,5]
[340244160,1728907843315,-731.71185817,0.0002239,5]
[340244161,1728907843331,-740.23858598,0.0002239,5]
[340244177,1728907846005,-4392.98562196,0.0002239,5]
[340244178,1728907846015,-416.0,0.000224,5]
[340244179,1728907846025,-921.0,0.000224,5]
[340244180,1728907846035,-680.65437805,0.000224,2]
[340244181,1728907846861,262.3843,0.000109,2]
[340244182,1728907847864,1000.0,0.000109,2]
[340244183,1728907884539,5971.894,0.00010257,2]
[340244184,1728907884717,150.0,0.00010875,2]
[340244185,1728908078280,156.1,0.00010959,2]
[340244192,1728908354832,550.0,0.0001,2]
[340244193,1728908708481,18289.6217,0.00011,2]
[340244194,1728908730252,49317.45610859,0.000101,2]
[340244195,1728908737263,22000.0,9e-05,2]
[340244196,1728908756187,20117.63406567,6.94e-05,2]
[340244198,1728908921313,2441.82627237,0.0001,2]
[340244215,1728909032057,-150.0,0.00010743,2]
[340244216,1728909032067,-1309.73281429,0.00010779,2]
[340244217,1728909032077,-532.04956618,0.0001078,2]
[340244218,1728909032114,-777.68324809,0.0001078,2]
[340244219,1728909032123,-8.61307447,0.0001078,2]
[340244220,1728909032135,-1301.1197398,0.0001078,2]
[340244221,1728909032145,-5958.77608531,0.0001088,2]
[340244222,1728909032155,-332.37,0.00010959,2]
[340244223,1728909032164,-150.8799967,0.00010973,2]
[340244224,1728909032174,-202.97887004,0.0001099,2]
[340244225,1728909032183,-21357.2408466,0.00010997,2]
[340244226,1728909032193,-150.0,0.00010999,2]
[340244227,1728909032203,-372.89242931,0.00010999,2]
[340244228,1728909032212,-116219.5930451,0.00011,2]
[340244229,1728909032237,-314.566,0.00011,2]
[340244230,1728909032342,-1546.45505833,0.00011,2]
[340244238,1728909038235,-551867.562757,0.00011,2]
[340244239,1728909038455,-59638.4650646,0.00011,2]
[340244242,1728909040212,-898.88029464,0.00011,2]
[340244243,1728909040223,-46565.99805131,0.00011,2]
[340244244,1728909040383,-2647.44274524,0.00011,2]
[340244245,1728909040395,-274.50856578,0.00011,2]
[340244258,1728909046247,-440.85017263,0.00011,2]
[340244259,1728909046304,-259.99999999,0.00011,2]
[340244260,1728909046419,-665.449164,0.00011,2]
[340244266,1728909097262,151.0,6.94e-05,2]
[340244267,1728909097598,237.0,6.94e-05,2]
[340244270,1728909603126,150.0,6.94e-05,2]
[340244271,1728909603204,150.0,6.94e-05,2]
[340244272,1728909603524,150.0,6.94e-05,2]
[340244273,1728909603705,150.0,6.94e-05,2]
[340244274,1728909603888,150.0,6.94e-05,2]